bitfinex/quotes_BTCUSD_20250208
["timestamp","ask_amount","ask_price","bid_price","bid_amount"]
[1738989378166,0.660563,96495.0,96494.0,0.4342922]
[1738989379607,0.661563,96495.0,96494.0,0.4342922]
[1738989379780,0.661563,96495.0,96494.0,0.4372922]
[1738989379945,0.661563,96495.0,96494.0,0.4342922]
[1738989380150,0.660563,96495.0,96494.0,0.4312922]
[1738989380597,0.660563,96495.0,96494.0,0.4342922]
[1738989381037,0.661563,96495.0,96494.0,0.4372922]
[1738989381207,0.661563,96495.0,96494.0,0.2818422]
[1738989381423,0.661563,96495.0,96494.0,0.4372922]
[1738989381771,0.661563,96495.0,96494.0,0.2818422]
[1738989381974,0.661563,96495.0,96494.0,0.4372922]
[1738989382507,0.661563,96495.0,96494.0,0.2788422]
[1738989382710,0.660563,96495.0,96494.0,0.4312922]
[1738989382923,0.661563,96495.0,96494.0,0.4372922]
[1738989383558,0.660563,96495.0,96494.0,0.4342922]
[1738989383737,0.660563,96495.0,96494.0,0.2788422]
[1738989383940,0.660563,96495.0,96494.0,0.2818422]
[1738989385735,0.660563,96495.0,96494.0,0.2788422]
[1738989386143,0.660563,96495.0,96494.0,0.2758422]
[1738989386471,0.660563,96495.0,96494.0,0.2798422]
[1738989386873,0.660563,96495.0,96494.0,0.2768422]
[1738989387443,0.660563,96495.0,96494.0,0.2798422]
[1738989387738,0.660563,96495.0,96494.0,0.2768422]
[1738989388838,0.660563,96495.0,96494.0,0.1268422]
[1738989389052,0.660563,96495.0,96494.0,0.1278422]
[1738989393701,0.816011,96495.0,96494.0,0.00233855]
[1738989395646,1.14645331,96495.0,96494.0,0.00033855]
[1738989395848,1.24895696,96495.0,96494.0,0.00033855]
[1738989396022,1.25095696,96495.0,96494.0,0.00133855]
[1738989396650,1.25695696,96495.0,96494.0,0.00033855]
[1738989396858,1.26395696,96495.0,96494.0,0.00033855]
[1738989397029,1.25595696,96495.0,96494.0,0.00033855]
[1738989397235,1.15945331,96495.0,96494.0,0.00033855]
[1738989397447,1.15245331,96495.0,96494.0,0.00033855]
[1738989398723,1.15945331,96495.0,96494.0,0.00033855]
[1738989399242,1.17957443,96495.0,96494.0,0.00033855]
[1738989399440,1.17357443,96495.0,96494.0,0.00033855]
[1738989399593,1.1481108,96495.0,96494.0,0.00033855]
[1738989400026,1.1551108,96495.0,96494.0,0.00033855]
[1738989400831,1.1431108,96495.0,96494.0,0.00033855]
[1738989401729,1.1361108,96495.0,96494.0,0.00033855]
[1738989402630,1.1381108,96495.0,96494.0,0.00033855]
[1738989403035,1.1361108,96495.0,96494.0,0.00033855]
[1738989403230,1.1451108,96495.0,96494.0,0.00133855]
[1738989403806,1.1431108,96495.0,96494.0,0.00133855]
[1738989404190,1.12627051,96495.0,96494.0,0.00233855]
[1738989404605,1.14717387,96495.0,96494.0,0.00233855]
[1738989405024,1.14017387,96495.0,96494.0,0.00133855]
[1738989405159,1.14717387,96495.0,96494.0,0.00133855]
[1738989422365,1.12627051,96495.0,96494.0,0.00133855]
[1738989422568,0.99577051,96495.0,96494.0,0.02433855]
[1738989423646,0.98977051,96495.0,96494.0,0.02333855]
[1738989423863,0.98277051,96495.0,96494.0,0.02333855]
[1738989424041,0.99377051,96495.0,96494.0,0.02333855]
[1738989424243,0.83332251,96495.0,96494.0,0.1258422]
[1738989424748,0.82832251,96495.0,96494.0,0.1258422]
[1738989424983,0.82732251,96495.0,96494.0,0.1258422]
[1738989425184,0.82732251,96495.0,96494.0,0.1278422]
[1738989425593,0.98277051,96495.0,96494.0,0.1278422]
[1738989426588,0.98277051,96495.0,96494.0,0.00233855]
[1738989427001,0.98277051,96495.0,96494.0,0.00533855]
[1738989427206,0.98277051,96495.0,96494.0,0.00333855]
[1738989427596,0.98277051,96495.0,96494.0,0.00133855]
[1738989427786,0.98277051,96495.0,96494.0,0.00033855]
[1738989428267,0.98477051,96495.0,96494.0,0.00033855]
[1738989429242,0.82932251,96495.0,96494.0,0.1268422]
[1738989429420,0.98477051,96495.0,96494.0,0.02433855]
[1738989429946,0.98277051,96495.0,96494.0,0.02433855]
[1738989430351,0.98277051,96495.0,96494.0,0.02533855]
[1738989430552,0.98277051,96495.0,96494.0,0.02333855]
[1738989430911,0.98277051,96495.0,96494.0,0.02733855]
[1738989431337,0.98277051,96495.0,96494.0,0.02533855]
[1738989431948,0.98277051,96495.0,96494.0,0.02833855]
[1738989438948,0.98277051,96495.0,96494.0,0.02533855]
[1738989439957,0.98277051,96495.0,96494.0,0.02333855]
[1738989440357,0.98377051,96495.0,96494.0,0.02333855]
[1738989440898,0.99328057,96495.0,96494.0,0.02333855]
[1738989441055,0.99528057,96495.0,96494.0,0.02333855]
[1738989441274,0.99728057,96495.0,96494.0,0.02333855]
[1738989441456,0.98777051,96495.0,96494.0,0.02333855]
[1738989441646,0.98577051,96495.0,96494.0,0.02333855]
[1738989442046,0.98677051,96495.0,96494.0,0.02333855]
[1738989443829,0.98377051,96495.0,96494.0,0.02333855]
[1738989444002,0.98577051,96495.0,96494.0,0.02333855]
[1738989444359,0.98677051,96495.0,96494.0,0.02333855]
[1738989444978,0.98577051,96495.0,96494.0,0.02333855]
[1738989445229,0.98277051,96495.0,96494.0,0.02333855]
[1738989445414,0.98377051,96495.0,96494.0,0.02333855]
[1738989445635,0.98477051,96495.0,96494.0,0.02333855]
[1738989449787,0.98477051,96495.0,96494.0,0.00033855]
[1738989450973,1.06487051,96495.0,96494.0,0.00033855]
[1738989455497,1.06464752,96495.0,96494.0,0.00033855]
[1738989459051,0.98454752,96495.0,96494.0,0.00033855]
[1738989461866,0.98354752,96495.0,96494.0,0.00033855]
[1738989462590,0.98254752,96495.0,96494.0,0.00033855]
[1738989462747,0.98354752,96495.0,96494.0,0.00033855]
[1738989463221,0.98254752,96495.0,96494.0,0.00033855]
[1738989463421,0.98254752,96495.0,96494.0,0.00233855]
[1738989465066,0.98254752,96495.0,96494.0,0.00333855]
[1738989481296,0.98254752,96495.0,96494.0,0.00233855]
[1738989481697,0.9803475,96495.0,96494.0,0.00033855]
[1738989481923,0.98258911,96495.0,96494.0,0.00033855]
[1738989482075,0.98358911,96495.0,96494.0,0.00033855]
[1738989482281,0.97558962,96495.0,96494.0,0.00033855]
[1738989482599,0.98358481,96495.0,96494.0,0.00033855]
[1738989482756,0.98458481,96495.0,96494.0,0.00033855]
[1738989483561,0.98358481,96495.0,96494.0,0.00033855]
[1738989484021,0.98458481,96495.0,96494.0,0.00033855]
[1738989491193,0.98436183,96495.0,96494.0,0.00033855]
[1738989491634,1.11506183,96495.0,96494.0,0.00033855]
[1738989492458,1.11406183,96495.0,96494.0,0.00033855]
[1738989492791,1.12006183,96495.0,96494.0,0.00133855]
[1738989493170,1.11906183,96495.0,96494.0,0.00133855]
[1738989493536,1.12306183,96495.0,96494.0,0.00133855]
[1738989493740,1.11906183,96495.0,96494.0,0.00133855]
[1738989494121,1.12306183,96495.0,96494.0,0.00133855]
[1738989494528,1.11706183,96495.0,96494.0,0.00033855]
[1738989494731,1.12306183,96495.0,96494.0,0.00033855]
[1738989495398,1.21565119,96495.0,96494.0,0.00033855]
[1738989496031,1.12306183,96495.0,96494.0,0.00033855]
[1738989508349,1.27306183,96495.0,96494.0,0.00033855]
[1738989512182,1.27306316,96495.0,96494.0,0.00033855]
[1738989525292,0.15,96494.0,96491.0,9.5e-07]
[1738989525502,0.15,96492.0,96491.0,3.7e-07]
[1738989525707,0.9018145,96492.0,96491.0,3.7e-07]
[1738989526751,0.9092945,96492.0,96491.0,3.7e-07]
[1738989526952,0.9122945,96492.0,96491.0,3.7e-07]
[1738989527108,1.01479815,96492.0,96491.0,3.7e-07]
[1738989527735,0.155493,96467.0,96466.0,0.04935418]
[1738989527996,0.96945065,96467.0,96466.0,0.04939972]
[1738989529130,0.97737378,96467.0,96466.0,0.04939972]
[1738989529986,0.97737378,96467.0,96466.0,0.05139972]
[1738989530164,0.97737378,96467.0,96466.0,0.05339972]
[1738989530303,0.97737378,96467.0,96466.0,0.05139972]
[1738989530508,0.97737378,96467.0,96466.0,0.04939972]
[1738989530709,0.97737378,96467.0,96466.0,0.05039972]
[1738989530906,0.97737378,96467.0,96466.0,0.04939972]
[1738989531125,0.97737378,96467.0,96466.0,0.05139972]
[1738989531325,0.97737378,96467.0,96466.0,0.00304554]
[1738989531543,0.97737378,96467.0,96466.0,0.00104554]
[1738989532241,0.98756607,96467.0,96466.0,0.00104554]
[1738989533449,0.98756607,96467.0,96466.0,0.00304554]
[1738989534460,0.99235982,96467.0,96466.0,0.00304554]
[1738989534882,0.98216753,96467.0,96466.0,0.00304554]
[1738989536646,0.98216753,96467.0,96466.0,0.00315234]
[1738989589178,0.82667453,96467.0,96466.0,0.20605599]
[1738989589412,0.50657473,96467.0,96466.0,0.20605599]
[1738989590581,0.50657473,96467.0,96466.0,0.36155099]
[1738989590814,0.50657473,96467.0,96466.0,0.20605599]
[1738989591615,0.50657473,96467.0,96466.0,0.36155099]
[1738989600602,0.50657473,96467.0,96466.0,0.20605599]
[1738989600989,0.66206773,96467.0,96466.0,0.00315234]
[1738989602002,0.74356773,96467.0,96466.0,0.00315234]
[1738989606357,1.06366753,96467.0,96466.0,0.00315234]
[1738989616035,1.13357103,96467.0,96466.0,0.00315234]
[1738989616243,1.06366753,96467.0,96466.0,0.00315234]
[1738989616444,1.11106753,96467.0,96466.0,0.00315234]
[1738989630996,0.282117,96452.0,96451.0,0.0002]
[1738989631199,0.77597485,96452.0,96451.0,0.0002]
[1738989631408,0.78866521,96452.0,96451.0,0.0002]
[1738989631872,0.89116886,96452.0,96451.0,0.0002]
[1738989632295,0.78866521,96452.0,96451.0,0.0002]
[1738989633243,0.79166521,96452.0,96451.0,0.0002]
[1738989634005,0.91886222,96452.0,96451.0,0.0002]
[1738989635511,0.92938235,96452.0,96451.0,0.0002]
[1738989636161,1.24948215,96452.0,96451.0,0.0002]
[1738989639420,1.25212042,96452.0,96451.0,0.0002]
[1738989639883,1.14961677,96452.0,96451.0,0.0002]
[1738989640083,1.02301677,96452.0,96451.0,0.0002]
[1738989640329,1.02301677,96452.0,96451.0,0.0003068]
[1738989641601,1.02253596,96452.0,96451.0,0.0003068]
[1738989652716,1.02276024,96452.0,96451.0,0.0003068]
[1738989654645,1.14976024,96452.0,96451.0,0.0003068]
[1738989661060,1.50476754,96452.0,96451.0,8e-07]
[1738989663316,1.50454899,96452.0,96451.0,8e-07]
[1738989664566,1.40204534,96452.0,96451.0,8e-07]
[1738989676114,0.15,96451.0,96449.0,1e-06]
[1738989676264,0.40906159,96450.0,96449.0,1e-06]
[1738989676476,0.91723137,96450.0,96449.0,1e-06]
[1738989676683,0.99473137,96450.0,96449.0,1e-06]
[1738989677067,1.09723502,96450.0,96449.0,1e-06]
[1738989677513,1.41733482,96450.0,96449.0,1e-06]
[1738989678819,1.42033482,96450.0,96449.0,1e-06]
[1738989679336,1.42333482,96450.0,96449.0,1e-06]
[1738989679548,0.305525,96447.0,96446.0,8e-07]
[1738989679750,1.3464863,96447.0,96446.0,8e-07]
[1738989679978,1.35436209,96447.0,96446.0,8e-07]
[1738989680182,1.36436209,96447.0,96446.0,8e-07]
[1738989680575,0.440046,96434.0,96433.0,6e-07]
[1738989680797,0.155609,96395.0,96394.0,0.08588045]
[1738989681001,0.65718969,96395.0,96394.0,0.08588045]
[1738989681593,0.50158069,96395.0,96394.0,0.1883841]
[1738989681793,0.50171628,96395.0,96394.0,0.3439951]
[1738989681994,0.50171628,96395.0,96394.0,0.4127951]
[1738989682222,0.49499344,96395.0,96394.0,0.4157951]
[1738989682638,0.50255104,96395.0,96394.0,0.4157951]
[1738989683150,0.50355104,96395.0,96394.0,0.4167951]
[1738989683349,0.50255104,96395.0,96394.0,0.42864891]
[1738989683560,0.50155104,96395.0,96394.0,0.42764891]
[1738989683748,0.51042044,96395.0,96394.0,0.42764891]
[1738989683920,0.51142044,96395.0,96394.0,0.42864891]
[1738989684460,0.51242044,96395.0,96394.0,0.42864891]
[1738989685852,0.51242044,96395.0,96394.0,0.57864891]
[1738989688277,0.51142044,96395.0,96394.0,0.57764891]
[1738989688499,0.51142044,96395.0,96394.0,0.57864891]
[1738989688740,0.51242044,96395.0,96394.0,0.57864891]
[1738989690401,0.51042044,96395.0,96394.0,0.57864891]
[1738989690614,0.51142044,96395.0,96394.0,0.58364891]
[1738989691655,0.51042044,96395.0,96394.0,0.58264891]
[1738989691861,0.50942044,96395.0,96394.0,0.57764891]
[1738989692098,0.51042044,96395.0,96394.0,0.58664891]
[1738989692295,0.51142044,96395.0,96394.0,0.59464891]
[1738989692466,0.51042044,96395.0,96394.0,0.60942223]
[1738989692843,0.51142044,96395.0,96394.0,0.61842223]
[1738989693409,0.51142044,96395.0,96394.0,0.65075436]
[1738989693587,0.51142044,96395.0,96394.0,0.62698104]
[1738989694210,0.51142044,96395.0,96394.0,0.63728141]
[1738989695420,0.51042044,96395.0,96394.0,0.62928141]
[1738989696065,0.50942044,96395.0,96394.0,0.62028141]
[1738989696895,0.51042044,96395.0,96394.0,0.62528141]
[1738989697443,0.51142044,96395.0,96394.0,0.63128141]
[1738989699557,0.51164472,96395.0,96394.0,0.63128141]
[1738989700363,0.51064472,96395.0,96394.0,0.62528141]
[1738989700700,0.50964472,96395.0,96394.0,0.62028141]
[1738989701007,0.51064472,96395.0,96394.0,0.62528141]
[1738989701213,0.51164472,96395.0,96394.0,0.63128141]
[1738989702138,0.51064472,96395.0,96394.0,0.62528141]
[1738989702338,0.50964472,96395.0,96394.0,0.62028141]
[1738989703577,0.51064472,96395.0,96394.0,0.62628141]
[1738989704185,0.51164472,96395.0,96394.0,0.63128141]
[1738989707803,0.51164472,96395.0,96394.0,0.47328104]
[1738989708005,0.51164472,96395.0,96394.0,0.28533791]
[1738989708239,0.66725372,96395.0,96394.0,0.03283426]
[1738989708775,0.66625372,96395.0,96394.0,0.02683426]
[1738989709032,0.66625372,96395.0,96394.0,0.04483426]
[1738989709033,0.66525372,96395.0,96394.0,0.04483426]
[1738989709229,0.66525372,96395.0,96394.0,0.02183426]
[1738989709406,0.66525372,96395.0,96394.0,0.02483426]
[1738989709647,0.66525372,96395.0,96394.0,0.04783426]
[1738989710006,0.66625372,96395.0,96394.0,0.05283426]
[1738989710285,0.98635352,96395.0,96394.0,0.05283426]
[1738989710483,0.98635352,96395.0,96394.0,0.03798045]
[1738989710807,0.98535352,96395.0,96394.0,0.03298045]
[1738989711026,0.98535352,96395.0,96394.0,0.03798045]
[1738989715390,0.98535352,96395.0,96394.0,0.03498045]
[1738989715605,0.98535352,96395.0,96394.0,0.03598045]
[1738989716096,0.98535352,96395.0,96394.0,0.03098045]
[1738989716460,0.98535352,96395.0,96394.0,0.03198045]
[1738989719892,0.82974452,96395.0,96394.0,0.03198045]
[1738989720102,0.08277161,96386.0,96380.0,0.01046536]
[1738989720275,0.20303875,96372.0,96359.0,4e-05]
[1738989720488,0.7781966,96372.0,96359.0,4e-05]
[1738989721219,0.62265785,96372.0,96359.0,4e-05]
[1738989721447,0.77830385,96372.0,96359.0,4e-05]
[1738989721853,0.62265785,96372.0,96359.0,4e-05]
[1738989722080,0.77830385,96372.0,96359.0,4e-05]
[1738989722302,0.77830385,96372.0,96371.0,0.0022]
[1738989722827,0.77930385,96372.0,96371.0,0.0022]
[1738989723251,0.49485785,96372.0,96371.0,0.0022]
[1738989723701,0.49485785,96372.0,96371.0,0.0023068]
[1738989723959,0.49585785,96372.0,96371.0,0.0023068]
[1738989724098,0.50354835,96372.0,96371.0,0.0023068]
[1738989724303,0.50254835,96372.0,96371.0,0.0023068]
[1738989724500,0.50254835,96372.0,96371.0,0.0043068]
[1738989724895,0.50154835,96372.0,96371.0,0.0023068]
[1738989725179,0.50154835,96372.0,96371.0,0.26145845]
[1738989725402,0.50154835,96372.0,96371.0,0.10481045]
[1738989725600,0.50154835,96372.0,96371.0,0.0023068]
[1738989725897,0.50913707,96372.0,96371.0,0.0013068]
[1738989726092,0.50913707,96372.0,96371.0,0.0043068]
[1738989726639,0.50913707,96372.0,96371.0,0.0013068]
[1738989726850,0.50913707,96372.0,96371.0,0.0033068]
[1738989727049,0.49385785,96372.0,96371.0,0.0033068]
[1738989727243,0.50154835,96372.0,96371.0,0.0033068]
[1738989727453,0.50913707,96372.0,96371.0,0.0033068]
[1738989730585,0.66478307,96372.0,96371.0,0.0033068]
[1738989731144,0.98488287,96372.0,96371.0,0.0033068]
[1738989731719,1.10888287,96372.0,96371.0,0.0033068]
[1738989732807,1.10888287,96372.0,96371.0,0.0013068]
[1738989733002,1.10888287,96372.0,96371.0,0.0003068]
[1738989733490,1.10988287,96372.0,96371.0,0.0003068]
[1738989733662,1.10988287,96372.0,96371.0,0.0023068]
[1738989733890,0.51013707,96372.0,96371.0,0.0023068]
[1738989734512,0.66578307,96372.0,96371.0,0.0023068]
[1738989734721,0.50913707,96372.0,96371.0,0.0023068]
[1738989734942,0.66678307,96372.0,96371.0,0.0003068]
[1738989735277,0.51413707,96372.0,96371.0,0.0003068]
[1738989735486,0.51436157,96372.0,96371.0,0.0003068]
[1738989735870,0.51136157,96372.0,96371.0,0.0003068]
[1738989736070,0.66500757,96372.0,96371.0,0.0023068]
[1738989736484,0.66500757,96372.0,96371.0,0.0033068]
[1738989736632,0.66500757,96372.0,96371.0,0.0003068]
[1738989736832,0.50936157,96372.0,96371.0,0.0003068]
[1738989741319,0.66500757,96372.0,96371.0,0.0003068]
[1738989741611,0.71200757,96372.0,96371.0,0.0003068]
[1738989742583,0.71300757,96372.0,96371.0,0.0003068]
[1738989742792,0.71400757,96372.0,96371.0,0.0003068]
[1738989742966,0.83146137,96372.0,96371.0,0.0003068]
[1738989743166,0.98710737,96372.0,96371.0,0.0003068]
[1738989751091,1.11110737,96372.0,96371.0,0.0003068]
[1738989752047,1.21361102,96372.0,96371.0,0.0003068]
[1738989752461,0.446558,96365.0,96364.0,0.00665563]
[1738989752673,1.0429195,96365.0,96364.0,6.3e-07]
[1738989752927,0.305666,96360.0,96359.0,4e-05]
[1738989753129,1.0404075,96360.0,96359.0,4e-05]
[1738989753340,0.446575,96354.0,96353.0,8e-07]
[1738989753539,0.01,96351.0,96350.0,0.01232815]
[1738989753870,1.15631473,96351.0,96350.0,0.01232815]
[1738989754058,1.05277314,96351.0,96350.0,0.01232815]
[1738989755202,1.05277314,96351.0,96350.0,0.01532815]
[1738989755408,1.15527679,96351.0,96350.0,0.01532815]
[1738989756370,1.16293926,96351.0,96350.0,0.01532815]
[1738989757058,1.20377618,96351.0,96350.0,0.01432815]
[1738989757257,1.20777618,96351.0,96350.0,0.01432815]
[1738989757455,1.20777618,96351.0,96350.0,0.01232815]
[1738989757662,1.35377618,96351.0,96350.0,0.01232815]
[1738989758240,1.36977618,96351.0,96350.0,0.01232815]
[1738989758677,1.35377618,96351.0,96350.0,0.01232815]
[1738989759395,1.36066408,96351.0,96350.0,0.01232815]
[1738989759841,1.36966408,96351.0,96350.0,0.01232815]
[1738989759996,1.37666408,96351.0,96350.0,0.01243505]
[1738989761444,1.38666408,96351.0,96350.0,5e-08]
[1738989761647,0.155709,96333.0,96320.0,0.00032069]
[1738989761806,0.73256685,96333.0,96320.0,0.00032069]
[1738989762015,1.21534707,96333.0,96320.0,0.00032069]
[1738989762259,1.16971946,96333.0,96320.0,0.00032069]
[1738989762638,1.21761946,96333.0,96320.0,0.00032069]
[1738989763477,1.36861946,96333.0,96320.0,0.00032069]
[1738989763704,1.26611581,96333.0,96320.0,0.00032069]
[1738989763888,1.19059581,96333.0,96320.0,0.00032069]
[1738989764090,1.18959581,96333.0,96320.0,0.00032069]
[1738989764497,1.20059581,96333.0,96320.0,0.00032069]
[1738989764651,1.19559581,96333.0,96320.0,0.00032069]
[1738989764992,1.19063581,96333.0,96320.0,0.00032069]
[1738989766045,1.19263581,96333.0,96320.0,0.00032069]
[1738989766773,1.14469581,96333.0,96320.0,0.00032069]
[1738989766979,1.14369581,96333.0,96320.0,0.00032069]
[1738989767171,1.13821581,96333.0,96320.0,0.00032069]
[1738989767547,1.13621581,96333.0,96320.0,0.00032069]
[1738989767967,1.13421581,96333.0,96320.0,0.00032069]
[1738989768210,0.81411601,96333.0,96320.0,0.00032069]
[1738989768460,0.81711601,96333.0,96320.0,0.00032069]
[1738989768954,0.81511601,96333.0,96320.0,0.00032069]
[1738989769494,0.81611601,96333.0,96320.0,0.00032069]
[1738989770921,0.82359601,96333.0,96320.0,0.00032069]
[1738989771468,0.82359601,96333.0,96332.0,0.00096373]
[1738989771951,0.82259601,96333.0,96332.0,0.00096373]
[1738989772087,0.82359601,96333.0,96332.0,0.00096373]
[1738989773287,0.82259601,96333.0,96332.0,0.00096373]
[1738989773742,0.82359601,96333.0,96332.0,0.00096373]
[1738989776398,0.82259601,96333.0,96332.0,0.00096373]
[1738989776931,0.82359601,96333.0,96332.0,0.00096373]
[1738989784672,1.14369581,96333.0,96332.0,0.00096373]
[1738989792768,0.98621581,96333.0,96332.0,0.00096373]
[1738989792967,0.98421581,96333.0,96332.0,0.00096373]
[1738989793327,0.98621581,96333.0,96332.0,0.00096373]
[1738989793730,0.98521581,96333.0,96332.0,0.00096373]
[1738989793970,0.98521581,96333.0,96332.0,0.00196373]
[1738989794173,0.98421581,96333.0,96332.0,0.00096373]
[1738989794534,0.98421581,96333.0,96332.0,0.01582855]
[1738989795152,0.98421581,96333.0,96332.0,0.01782855]
[1738989795713,1.06051581,96333.0,96332.0,0.01782855]
[1738989796297,1.06051581,96333.0,96332.0,0.00496373]
[1738989796501,1.06051581,96333.0,96332.0,0.00296373]
[1738989796829,0.98421581,96333.0,96332.0,0.00296373]
[1738989797455,0.98521581,96333.0,96332.0,0.00096373]
[1738989798099,0.98621581,96333.0,96332.0,0.00096373]
[1738989807595,1.06801581,96333.0,96332.0,0.00096373]
[1738989808940,1.38930676,96333.0,96332.0,0.00096373]
[1738989809155,1.43450676,96333.0,96332.0,0.00096373]
[1738989810774,0.315711,96332.0,96331.0,1e-06]
[1738989810968,0.315711,96332.0,96320.0,0.00032069]
[1738989810969,0.305729,96321.0,96320.0,0.00032069]
[1738989811098,0.9020905,96321.0,96320.0,0.00032069]
[1738989811295,0.9838905,96321.0,96320.0,0.00032069]
[1738989811513,1.08656531,96321.0,96320.0,0.00032069]
[1738989812176,1.08670073,96321.0,96320.0,0.00032069]
[1738989812582,1.46660053,96321.0,96320.0,6.9e-07]
[1738989812785,1.49260053,96321.0,96320.0,6.9e-07]
[1738989813164,1.60180053,96321.0,96320.0,6.9e-07]
[1738989813366,1.69338418,96321.0,96320.0,6.9e-07]
[1738989813619,1.66330109,96321.0,96320.0,6.9e-07]
[1738989813804,1.52570713,96321.0,96320.0,6.9e-07]
[1738989814014,1.53297186,96321.0,96320.0,6.9e-07]
[1738989814206,1.53845186,96321.0,96320.0,6.9e-07]
[1738989814427,1.55545186,96321.0,96320.0,6.9e-07]
[1738989814645,1.4098732,96321.0,96320.0,6.9e-07]
[1738989815229,1.4173532,96321.0,96320.0,6.9e-07]
[1738989816074,0.305761,96301.0,96300.0,0.043594]
[1738989816312,0.79961885,96301.0,96300.0,0.043594]
[1738989816519,0.80717666,96301.0,96300.0,0.043594]
[1738989817462,0.80817666,96301.0,96300.0,0.043594]
[1738989817689,0.80817666,96301.0,96300.0,0.038594]
[1738989818109,0.80917666,96301.0,96300.0,0.038594]
[1738989819417,0.81609967,96301.0,96300.0,0.038594]
[1738989820126,1.13619947,96301.0,96300.0,0.038594]
[1738989823314,0.98619947,96301.0,96300.0,0.038594]
[1738989827598,0.83043847,96301.0,96300.0,0.26409765]
[1738989827800,0.98619947,96301.0,96300.0,0.26409765]
[1738989828352,0.98519947,96301.0,96300.0,0.26409765]
[1738989828532,0.82843847,96301.0,96300.0,0.26409765]
[1738989829086,0.98419947,96301.0,96300.0,0.26409765]
[1738989829286,0.82843847,96301.0,96300.0,0.26409765]
[1738989829713,0.82943847,96301.0,96300.0,0.26409765]
[1738989829915,0.98619947,96301.0,96300.0,0.26409765]
[1738989830132,0.50933867,96301.0,96300.0,0.41986065]
[1738989830527,0.50933867,96301.0,96300.0,0.42086065]
[1738989830790,0.50833867,96301.0,96300.0,0.42086065]
[1738989830990,0.50833867,96301.0,96300.0,0.41986065]
[1738989831361,0.50933867,96301.0,96300.0,0.42086065]
[1738989831740,0.50933867,96301.0,96300.0,0.42186065]
[1738989832097,0.50933867,96301.0,96300.0,0.43658109]
[1738989832529,0.50933867,96301.0,96300.0,0.43668789]
[1738989832681,0.50833867,96301.0,96300.0,0.43568789]
[1738989832893,0.50956295,96301.0,96300.0,0.43568789]
[1738989833527,0.50956295,96301.0,96300.0,0.43868789]
[1738989836962,0.50956295,96301.0,96300.0,0.42396745]
[1738989838276,0.50956295,96301.0,96300.0,0.44696745]
[1738989839249,0.50856295,96301.0,96300.0,0.44596745]
[1738989839493,0.50856295,96301.0,96300.0,0.44296745]
[1738989839811,0.51056295,96301.0,96300.0,0.44696745]
[1738989839967,0.50956295,96301.0,96300.0,0.44296745]
[1738989840367,0.51056295,96301.0,96300.0,0.44396745]
[1738989841062,0.51156295,96301.0,96300.0,0.44696745]
[1738989844720,0.50856295,96301.0,96300.0,0.44296745]
[1738989845094,0.51056295,96301.0,96300.0,0.60896745]
[1738989845888,0.2302289,96301.0,96300.0,0.62896745]
[1738989846094,0.0003597,96321.0,96320.0,0.39863]
[1738989846304,0.0003597,96321.0,96320.0,0.52413365]
[1738989846513,0.5194597,96321.0,96320.0,0.52413365]
[1738989847461,0.52525972,96321.0,96320.0,0.52413365]
[1738989847874,0.52525972,96321.0,96320.0,0.53213365]
[1738989848508,0.52525972,96321.0,96320.0,0.54213365]
[1738989848709,0.52525972,96321.0,96320.0,0.55113365]
[1738989849561,0.52525972,96321.0,96320.0,0.57217602]
[1738989852894,0.52525972,96321.0,96320.0,0.58239735]
[1738989853858,0.5327386,96321.0,96320.0,0.58239735]
[1738989855856,0.5327386,96321.0,96320.0,0.57339735]
[1738989856172,0.5327386,96321.0,96320.0,0.58239735]
[1738989856780,0.5327386,96321.0,96320.0,0.57439735]
[1738989856989,0.5327386,96321.0,96320.0,0.58339735]
[1738989860718,0.5327386,96321.0,96320.0,0.61560646]
[1738989866022,0.4064186,96321.0,96320.0,0.61560646]
[1738989866197,0.4064186,96321.0,96320.0,0.58339735]
[1738989866373,0.4064186,96321.0,96320.0,0.61563303]
[1738989866813,0.3648906,96321.0,96320.0,0.61563303]
[1738989867019,0.3441266,96321.0,96320.0,0.61563303]
[1738989867202,0.24137606,96321.0,96320.0,0.61563303]
[1738989867401,0.19984806,96321.0,96320.0,0.61563303]
[1738989867700,0.20007234,96321.0,96320.0,0.61563303]
[1738989867955,0.12450144,96321.0,96320.0,0.59763303]
[1738989868125,0.12450144,96321.0,96320.0,0.61563303]
[1738989869061,0.10373744,96321.0,96320.0,0.61563303]
[1738989872804,0.06773744,96321.0,96320.0,0.61563303]
[1738989874083,0.06773744,96321.0,96320.0,0.62311303]
[1738989874289,0.06773744,96321.0,96320.0,0.53273303]
[1738989874488,0.06773744,96321.0,96320.0,0.50973303]
[1738989874696,0.06773744,96321.0,96320.0,0.47749735]
[1738989874895,0.06773744,96321.0,96320.0,0.50049735]
[1738989877222,0.06773744,96321.0,96320.0,0.53282366]
[1738989880362,0.06773744,96321.0,96320.0,0.53293046]
[1738989880900,0.06752744,96321.0,96320.0,0.53293046]
[1738989888344,0.11592744,96321.0,96320.0,0.48993046]
[1738989888558,0.11592744,96321.0,96320.0,0.31888809]
[1738989888559,0.19672744,96321.0,96320.0,0.31888809]
[1738989888760,0.19672744,96321.0,96320.0,0.49188809]
[1738989888956,0.20996623,96321.0,96320.0,0.49188809]
[1738989889454,0.20996623,96321.0,96320.0,0.48288809]
[1738989889892,0.20996623,96321.0,96320.0,0.49188809]
[1738989890097,0.20996623,96321.0,96320.0,0.48288809]
[1738989890303,0.20996623,96321.0,96320.0,0.47388809]
[1738989890951,0.20996623,96321.0,96320.0,0.48288809]
[1738989891149,0.20996623,96321.0,96320.0,0.47388809]
[1738989891600,0.20996623,96321.0,96320.0,0.48388809]
[1738989901603,0.20996623,96321.0,96320.0,0.30156178]
[1738989901950,0.19672744,96321.0,96320.0,0.30156178]
[1738989902428,0.20423027,96321.0,96320.0,0.30156178]
[1738989903951,0.35995927,96321.0,96320.0,0.11261045]
[1738989904837,0.35995927,96321.0,96320.0,0.10261045]
[1738989905252,0.35995927,96321.0,96320.0,0.10361045]
[1738989905402,0.36568266,96321.0,96320.0,0.10361045]
[1738989906056,0.36568266,96321.0,96320.0,0.10461045]
[1738989910607,0.68578246,96321.0,96320.0,0.0021068]
[1738989911710,0.68578246,96321.0,96320.0,0.0011068]
[1738989913110,0.68578246,96321.0,96320.0,0.0001068]
[1738989917014,0.68578246,96321.0,96320.0,0.10261045]
[1738989917229,0.20995366,96321.0,96320.0,0.10261045]
[1738989917643,0.36568266,96321.0,96320.0,0.10261045]
[1738989918470,0.36568266,96321.0,96320.0,0.0001068]
[1738989919883,0.36568266,96321.0,96320.0,0.0011068]
[1738989920158,0.36568266,96321.0,96320.0,0.10361045]
[1738989920358,0.20995366,96321.0,96320.0,0.10361045]
[1738989920805,0.36568266,96321.0,96320.0,0.10361045]
[1738989921063,0.20995366,96321.0,96320.0,0.10361045]
[1738989921891,0.20995366,96321.0,96320.0,0.25934045]
[1738989922374,0.20995366,96321.0,96320.0,0.10361045]
[1738989922617,0.12915366,96321.0,96320.0,0.28234045]
[1738989923387,0.08075366,96321.0,96320.0,0.28234045]
[1738989923775,0.06752744,96321.0,96320.0,0.28234045]
[1738989928716,0.06752744,96321.0,96320.0,0.27234045]